fUSD/lending_fUSD_20260127
["ID","MTS","AMOUNT","RATE_DAILY","PERIOD"]
[403789041,1769544639927,-500.0,0.00015844,2]
[403789042,1769544639936,-514.83889524,0.00015845,2]
[403789043,1769544639946,-500.0,0.00015845,2]
[403789044,1769544639957,-500.0,0.00015845,2]
[403789045,1769544639966,-500.0,0.00015845,2]
[403789046,1769544639975,-500.0,0.00015845,2]
[403789047,1769544639985,-440.51796879,0.00015845,2]
[403789048,1769544639995,-629.4,0.00015845,2]
[403789049,1769544640004,-500.0,0.00015845,2]
[403789050,1769544640013,-500.0,0.00015845,2]
[403789051,1769544640022,-500.0,0.00015845,2]
[403789052,1769544640032,-500.0,0.00015845,2]
[403789053,1769544640041,-206.35426011,0.00015845,2]
[403789054,1769544640050,-401.08755421,0.00015845,2]
[403789055,1769544640059,-2119.61382745,0.00016038,2]
[403789056,1769544640068,-629.4,0.00016119,2]
[403789057,1769544640077,-515.15499384,0.00016138,2]
[403789058,1769544640086,-200.0,0.00016281,2]
[403789059,1769544640095,-2658.03,0.00016319,2]
[403789060,1769544640105,-200.0,0.00016325,2]
[403789061,1769544640115,-1000.0,0.00016355,2]
[403789062,1769544640124,-500.0,0.00016373,2]
[403789063,1769544640133,-217.113082,0.00016373,2]
[403789064,1769544640144,-500.81908934,0.00016373,2]
[403789065,1769544640154,-504.6451351,0.00016373,2]
[403789067,1769544640163,-500.0,0.00016373,2]
[403789069,1769544640172,-3240.0,0.00016373,2]
[403789070,1769544640181,-1098.0,0.00016387,2]
[403789071,1769544640190,-204.15233997,0.00016389,2]
[403789072,1769544640199,-629.4,0.00016393,2]
[403789073,1769544640208,-802.0,0.00016418,2]
[403789075,1769544640218,-500.0,0.00016438,2]
[403789076,1769544640227,-500.0,0.00016438,2]
[403789077,1769544640236,-500.0,0.00016438,2]
[403789078,1769544640246,-500.0,0.00016438,2]
[403789079,1769544640255,-500.0,0.00016438,2]
[403789080,1769544640264,-500.0,0.00016438,2]
[403789081,1769544640274,-500.0,0.00016438,2]
[403789082,1769544640285,-554.05813642,0.00016438,2]
[403789083,1769544640296,-500.0,0.00016438,2]
[403789084,1769544640306,-500.0,0.00016438,2]
[403789085,1769544640316,-500.0,0.00016438,2]
[403789086,1769544640325,-500.0,0.00016438,2]
[403789087,1769544640334,-500.0,0.00016438,2]
[403789088,1769544640345,-500.0,0.00016438,2]
[403789089,1769544640354,-500.0,0.00016438,2]
[403789090,1769544640364,-500.0,0.00016438,2]
[403789091,1769544640374,-500.0,0.00016438,2]
[403789092,1769544640383,-500.0,0.00016438,2]
[403789093,1769544640392,-795.0,0.0001645,2]
[403789094,1769544640402,-197.0,0.00016485,2]
[403789095,1769544640411,-213.0,0.00016485,2]
[403789096,1769544640421,-629.4,0.00016667,2]
[403789097,1769544640431,-1157.15,0.00016828,2]
[403789098,1769544640441,-1061.30412969,0.00016921,2]
[403789099,1769544640462,-629.4,0.00016941,2]
[403789100,1769544640472,-510.0,0.00016968,2]
[403789101,1769544640482,-284.53,0.00016968,2]
[403789102,1769544640492,-250.0,0.00017,2]
[403789103,1769544640501,-174.25,0.00017,2]
[403789104,1769544640511,-250.0,0.00017076,2]
[403789105,1769544640520,-2040.61,0.00017185,2]
[403789106,1769544640530,-629.4,0.00017215,2]
[403789107,1769544640540,-500.0,0.00017298,2]
[403789108,1769544640549,-500.0,0.00017298,2]
[403789109,1769544640559,-1680.0,0.00017305,2]
[403789110,1769544640569,-500.0,0.000174,2]
[403789111,1769544640579,-500.0,0.00017425,2]
[403789112,1769544640588,-497.15,0.00017433,2]
[403789113,1769544640598,-358.07323626,0.00017433,2]
[403789114,1769544640607,-629.4,0.00017489,2]
[403789115,1769544640616,-500.0,0.00017699,2]
[403789116,1769544640626,-150.0,0.00017699,2]
[403789117,1769544640635,-150.0,0.00017699,2]
[403789118,1769544640645,-150.0,0.00017699,2]
[403789119,1769544640655,-620.0,0.00017699,2]
[403789120,1769544640665,-150.0,0.00017699,2]
[403789121,1769544640675,-150.0,0.00017699,2]
[403789122,1769544640684,-500.0,0.00017699,2]
[403789123,1769544640694,-500.0,0.00017699,2]
[403789124,1769544640703,-150.0,0.00017699,2]
[403789125,1769544640712,-500.0,0.00017699,2]
[403789126,1769544640722,-150.0,0.00017699,2]
[403789127,1769544640731,-500.0,0.00017699,2]
[403789128,1769544640740,-213.19994559,0.00017699,2]
[403789129,1769544640750,-150.0,0.00017699,2]
[403789130,1769544640759,-150.0,0.00017699,2]
[403789131,1769544640768,-150.0,0.00017699,2]
[403789132,1769544640779,-150.0,0.00017699,2]
[403789133,1769544640788,-500.0,0.00017699,2]
[403789134,1769544640797,-150.0,0.00017699,2]
[403789135,1769544640807,-150.0,0.00017699,2]
[403789136,1769544640816,-299.99,0.00017728,4]
[403789137,1769544640825,-150.99,0.00017728,2]
[403789138,1769544640835,-9999.99,0.00017728,2]
[403789139,1769544640845,-500.0,0.00017754,2]
[403789140,1769544640855,-150.0,0.00017754,2]
[403789141,1769544640864,-150.0,0.00017754,2]
[403789142,1769544640873,-620.0,0.00017754,2]
[403789143,1769544640883,-150.0,0.00017754,2]
[403789144,1769544640896,-150.0,0.00017754,2]
[403789145,1769544640906,-500.0,0.00017754,2]
[403789146,1769544640915,-500.0,0.00017754,2]
[403789147,1769544640925,-150.0,0.00017754,2]
[403789148,1769544640935,-500.0,0.00017754,2]
[403789149,1769544640945,-150.19824857,0.00017754,2]
[403789150,1769544640955,-500.0,0.00017754,2]
[403789151,1769544640966,-150.93589511,0.00017754,2]
[403789152,1769544640975,-150.0,0.00017754,2]
[403789153,1769544640985,-150.0,0.00017754,2]
[403789154,1769544640996,-150.0,0.00017754,2]
[403789155,1769544641006,-568.740597,0.00017754,2]
[403789156,1769544641016,-150.72666593,0.00017754,2]
[403789157,1769544641026,-155.71044254,0.00017754,2]
[403789158,1769544641037,-629.43565862,0.00017763,2]
[403789159,1769544641047,-1104.0,0.000178,2]
[403789160,1769544641057,-500.0,0.00017809,2]
[403789161,1769544641067,-150.0,0.00017809,2]
[403789162,1769544641442,-150.0,0.00017809,2]
[403789163,1769544641452,-620.0,0.00017809,2]
[403789164,1769544641462,-200.0,0.00017809,2]
[403789165,1769544641472,-150.0,0.00017809,2]
[403789166,1769544641481,-500.0,0.00017809,2]
[403789167,1769544641490,-500.0,0.00017809,2]
[403789168,1769544641500,-150.0,0.00017809,2]
[403789169,1769544641509,-376.24205671,0.00017809,2]
[403789170,1769544641518,-500.0,0.00017809,2]
[403789171,1769544641527,-150.0,0.00017809,2]
[403789172,1769544641539,-151.00522339,0.00017809,2]
[403789173,1769544641550,-295.09286657,0.0001786,2]
[403789174,1769544641560,-520.5787951,0.0001786,2]
[403789175,1769544641569,-778.7547437,0.0001786,2]
[403789176,1769544641578,-500.0,0.00017863,2]
[403789177,1769544641587,-150.0,0.00017863,2]
[403789178,1769544641596,-620.0,0.00017863,2]
[403789179,1769544641606,-150.0,0.00017863,2]
[403789180,1769544641615,-152.19420035,0.00017863,2]
[403789181,1769544641625,-500.0,0.00017863,2]
[403789182,1769544641635,-500.0,0.00017863,2]
[403789183,1769544641644,-240.41327915,0.00017863,2]
[403789184,1769544641653,-500.0,0.00017863,2]
[403789185,1769544641662,-150.0,0.00017863,2]
[403789186,1769544641672,-4371.0773,0.000179,2]
[403789187,1769544641681,-575.9921483,0.000179,2]
[403789188,1769544641690,-500.0,0.00017918,2]
[403789189,1769544641700,-150.0,0.00017918,2]
[403789190,1769544641709,-620.0,0.00017918,2]
[403789191,1769544641718,-150.0,0.00017918,2]
[403789192,1769544641728,-500.0,0.00017918,2]
[403789193,1769544641738,-500.0,0.00017918,2]
[403789194,1769544641747,-500.0,0.00017918,2]
[403789195,1769544641756,-150.0,0.00017918,2]
[403789196,1769544641767,-500.0,0.00017973,2]
[403789197,1769544641776,-166.0,0.00017973,2]
[403789198,1769544641789,-620.0,0.00017973,2]
[403789199,1769544641799,-250.0,0.00017973,2]
[403789200,1769544641809,-500.0,0.00017973,2]
[403789201,1769544641819,-500.0,0.00017973,2]
[403789202,1769544641829,-500.0,0.00017973,2]
[403789203,1769544641839,-151.0,0.00017997,2]
[403789204,1769544641848,-276.98573316,0.00017997,2]
[403789205,1769544641857,-289.27049339,0.00017999,2]
[403789206,1769544641867,-500.0,0.00017999,2]
[403789207,1769544641877,-500.0,0.00017999,2]
[403789208,1769544641890,-500.0,0.00017999,2]
[403789209,1769544641899,-6978.5494406,0.00017999,2]
[403789210,1769544641909,-197499.03366293,0.00018,2]
[403789212,1769544642758,-5933.5,0.00018,2]
[403789213,1769544642773,-306.85795352,0.00018,2]
[403789214,1769544642800,-865.01,0.00018,2]
[403789215,1769544644207,-150.00046158,0.00016038,2]
[403789216,1769544644217,-150.00046158,0.00017382,2]
[403789217,1769544644227,-179.57287198,0.00018,2]
[403789222,1769544645585,-260.19,0.0001586,2]
[403789223,1769544645595,-151.0,0.0001586,2]
[403789224,1769544645605,-5595.20368264,0.00018,2]
[403789225,1769544645638,-904.38145112,0.00018,2]
[403789226,1769544645650,-280.19276154,0.00018,2]
[403789227,1769544645693,-1837.60244771,0.00018,2]
[403789228,1769544645748,-3030.5645071,0.00018,2]
[403789415,1769544804105,-150.00046158,0.00026786,31]
[403789416,1769544804138,-150.00046158,0.0002813,35]
[403789417,1769544804171,-150.00046158,0.00029473,39]
[403789418,1769544804204,-214.93084404,0.0003011,30]
[403789419,1769544804238,-150.00046158,0.00030817,42]
[403789420,1769544804271,-210.0,0.0003084,30]
[403789421,1769544804302,-150.00046158,0.0003216,46]
[403789422,1769544804331,-358.21807339,0.00032849,120]
[403789423,1769544804360,-210.0,0.0003286,30]
[403789424,1769544804392,-150.00046158,0.00033504,50]
[403789425,1769544804423,-150.00046181,0.00034847,54]
[403789426,1769544804453,-210.0,0.0003488,30]
[403789427,1769544804485,-153.614042,0.00036191,57]
[403789428,1769544804516,-210.0,0.0003689,30]
[403789429,1769544804549,-153.614042,0.00037534,61]
[403789430,1769544804579,-1000.0,0.00038,30]
[403789431,1769544804609,-153.614042,0.00038878,65]
[403789432,1769544804638,-210.0,0.0003891,30]
[403789433,1769544804669,-2000.0,0.00039,30]
[403789434,1769544804700,-2000.0,0.00039,30]
[403789435,1769544804734,-150.0,0.00039,30]
[403789436,1769544804767,-35925.61554766,0.00039,120]
[403789437,1769544804800,-150.0,0.000394,39]
[403789438,1769544804832,-151.0,0.000394,120]
[403789439,1769544804864,-151.0,0.000394,120]
[403789440,1769544804896,-151.0,0.000394,120]
[403789441,1769544804927,-151.0,0.000394,120]
[403789442,1769544804960,-151.0,0.000394,120]
[403789443,1769544804993,-151.0,0.000394,120]
[403789444,1769544805025,-151.0,0.000394,30]
[403789445,1769544805054,-151.0,0.000394,120]
[403789446,1769544805083,-151.0,0.000394,120]
[403789447,1769544805112,-217.092059,0.000394,120]
[403789448,1769544805142,-151.0,0.000394,120]
[403789449,1769544805482,-217.092059,0.000394,120]
[403789450,1769544805515,-151.0,0.000394,120]
[403789451,1769544805546,-217.092059,0.000394,120]
[403789452,1769544805577,-289.84528,0.000394,120]
[403789453,1769544805608,-217.092059,0.000394,120]
[403789454,1769544805637,-405.50346,0.000394,120]
[403789455,1769544805666,-405.50346,0.000394,120]
[403789456,1769544805695,-405.50346,0.000394,120]
[403789457,1769544805727,-151.0,0.000394,120]
[403789458,1769544805757,-405.50346,0.000394,120]
[403789459,1769544805788,-533.945927,0.000394,120]
[403789460,1769544805818,-533.945927,0.000394,120]
[403789461,1769544805848,-533.945927,0.000394,120]
[403789462,1769544805879,-533.945927,0.000394,120]
[403789463,1769544805910,-188.145171,0.000394,120]
[403789464,1769544805943,-188.145171,0.000394,120]
[403789465,1769544805973,-188.145171,0.000394,120]
[403789466,1769544806006,-188.145171,0.000394,120]
[403789467,1769544806039,-190.529351,0.000394,120]
[403789468,1769544806072,-190.529351,0.000394,120]
[403789469,1769544806103,-190.529351,0.000394,120]
[403789470,1769544806134,-190.529351,0.000394,120]
[403789471,1769544806163,-151.0,0.000394,120]
[403789472,1769544806194,-151.0,0.000394,120]
[403789473,1769544806226,-210.420096,0.000394,120]
[403789474,1769544806269,-266.518403,0.000394,90]
[403789475,1769544806306,-266.518403,0.000394,90]
[403789476,1769544806339,-151.0,0.000394,120]
[403789477,1769544806370,-151.0,0.000394,120]
[403789478,1769544806402,-266.518403,0.000394,90]
[403789479,1769544806434,-151.0,0.000394,120]
[403789480,1769544806465,-266.518403,0.000394,90]
[403789481,1769544806496,-151.0,0.000394,120]
[403789482,1769544806527,-151.0,0.000394,120]
[403789483,1769544806558,-151.0,0.000394,120]
[403789484,1769544806589,-151.0,0.000394,120]
[403789485,1769544806620,-468.926574,0.000394,120]
[403789486,1769544806650,-151.0,0.000394,120]
[403789487,1769544806681,-468.926574,0.000394,120]
[403789488,1769544806713,-1697.517,0.000394,120]
[403789489,1769544806745,-468.926574,0.000394,120]
[403789490,1769544806777,-1697.517,0.000394,120]
[403789491,1769544806810,-468.926574,0.000394,120]
[403789492,1769544806843,-1697.517,0.000394,120]
[403789493,1769544806875,-1697.517,0.000394,120]
[403789494,1769544806908,-151.0,0.000394,120]
[403789495,1769544806942,-151.0,0.000394,120]
[403789496,1769544806973,-151.0,0.000394,120]
[403789497,1769544807005,-162.69892,0.000394,120]
[403789498,1769544807037,-371.507359,0.000394,120]
[403789499,1769544807068,-151.0,0.000394,120]
[403789500,1769544807101,-371.507359,0.000394,120]
[403789501,1769544807133,-213.643346,0.000394,120]
[403789502,1769544807164,-371.507359,0.000394,120]
[403789503,1769544807194,-188.019854,0.000394,120]
[403789504,1769544807226,-213.643346,0.000394,120]
[403789505,1769544807256,-151.0,0.000394,120]
[403789506,1769544807289,-188.019854,0.000394,120]
[403789507,1769544807321,-371.507359,0.000394,120]
[403789508,1769544807354,-213.643346,0.000394,120]
[403789509,1769544807385,-152.647483,0.000394,120]
[403789510,1769544807415,-151.0,0.000394,120]
[403789511,1769544807446,-152.647483,0.000394,120]
[403789512,1769544807477,-213.643346,0.000394,120]
[403789513,1769544807508,-151.0,0.000394,120]
[403789514,1769544807540,-152.647483,0.000394,120]
[403789515,1769544807572,-152.647483,0.000394,120]
[403789516,1769544807602,-412.090994,0.000394,120]
[403789517,1769544807632,-412.090994,0.000394,120]
[403789518,1769544807663,-151.0,0.000394,30]
[403789519,1769544807696,-412.090994,0.000394,120]
[403789520,1769544807731,-188.019854,0.000394,120]
[403789521,1769544807763,-412.090994,0.000394,120]
[403789522,1769544807796,-188.019854,0.000394,120]
[403789523,1769544807828,-151.0,0.000394,120]
[403789524,1769544807860,-151.0,0.000394,120]
[403789525,1769544807892,-151.0,0.000394,120]
[403789526,1769544807923,-176.664947,0.000394,120]
[403789527,1769544807959,-176.664947,0.000394,120]
[403789528,1769544807990,-151.0,0.000394,120]
[403789529,1769544808021,-176.664947,0.000394,120]
[403789530,1769544808053,-151.0,0.000394,120]
[403789531,1769544808084,-176.664947,0.000394,120]
[403789532,1769544808116,-151.0,0.000394,120]
[403789533,1769544808147,-151.0,0.000394,120]
[403789534,1769544808184,-2192.86,0.000399,30]
[403789535,1769544808215,-166.66,0.00039953,30]
[403789536,1769544808248,-153.614042,0.00040221,69]
[403789537,1769544808278,-1845.616,0.0004073,59]
[403789538,1769544808308,-166.66,0.00040794,30]
[403789539,1769544808339,-210.0,0.0004093,30]
[403789540,1769544808371,-515.89547209,0.00041095,120]
[403789541,1769544808403,-266.06,0.00041096,120]
[403789542,1769544808436,-200.0,0.00041552,120]
[403789543,1769544808470,-153.614042,0.00041565,72]
[403789544,1769544808744,-166.66,0.00041635,30]
[403789545,1769544808776,-2192.86,0.000419,30]
[403789546,1769544808808,-1000.0,0.00042,120]
[403789547,1769544808840,-500.0,0.00042,120]
[403789548,1769544808869,-9324.0,0.00042112,30]
[403789549,1769544808900,-500.0,0.000424,120]
[403789550,1769544808931,-500.0,0.00042438,120]
[403789551,1769544808965,-759.1,0.00042459,120]
[403789552,1769544808998,-166.66,0.00042476,30]
[403789553,1769544809027,-500.0,0.000425,120]
[403789554,1769544809054,-9324.0,0.00042546,30]
[403789555,1769544809083,-500.0,0.00042575,120]
[403789556,1769544809114,-736.03,0.000426,120]
[403789557,1769544809142,-1587.7,0.000426,120]
[403789558,1769544809170,-1733.46,0.000426,120]
[403789559,1769544809197,-562.46,0.000426,120]
[403789560,1769544809225,-1974.92,0.000426,120]
[403789561,1769544809253,-174.53,0.000426,120]
[403789562,1769544809281,-2718.37,0.000426,120]
[403789563,1769544809308,-2508.55,0.000426,120]
[403789564,1769544809336,-1604.65,0.000426,120]
[403789565,1769544809363,-500.0,0.00042712,120]
[403789566,1769544809391,-500.0,0.00042775,120]
[403789567,1769544809418,-509.13842514,0.00042775,120]
[403789568,1769544809456,-500.0,0.00042775,120]
[403789569,1769544809485,-500.0,0.00042775,120]
[403789570,1769544809515,-500.0,0.00042775,120]
[403789571,1769544809543,-500.0,0.00042775,120]
[403789572,1769544809571,-500.0,0.00042775,120]
[403789573,1769544809598,-500.0,0.00042775,120]
[403789574,1769544809625,-500.0,0.00042775,120]
[403789575,1769544809652,-500.0,0.00042775,120]
[403789576,1769544809680,-599.37099004,0.00042775,120]
[403789577,1769544809713,-253.0,0.000428,40]
[403789578,1769544809742,-500.0,0.00042849,120]
[403789579,1769544809771,-500.0,0.00042876,120]
[403789580,1769544809799,-500.0,0.00042876,120]
[403789581,1769544809829,-500.0,0.00042876,120]
[403789582,1769544809858,-500.0,0.00042876,120]
[403789583,1769544809889,-500.0,0.00042876,120]
[403789584,1769544809919,-152.0,0.000429,120]
[403789585,1769544809951,-200.0,0.000429,120]
[403789586,1769544809980,-300.0,0.00042904,90]
[403789587,1769544810010,-300.0,0.00042904,90]
[403789588,1769544810039,-153.614042,0.00042908,90]
[403789589,1769544810066,-642.45,0.00042932,30]
[403789590,1769544810094,-642.45,0.00042932,30]
[403789591,1769544810123,-642.45,0.00042932,30]
[403789592,1769544810152,-642.45,0.00042932,30]
[403789593,1769544810180,-642.65,0.00042932,30]
[403789594,1769544810210,-23518.75301099,0.00042933,30]
[403789595,1769544810238,-210.0,0.0004295,30]
[403789596,1769544810266,-250.0,0.00042959,90]
[403789597,1769544810294,-9324.0,0.0004298,30]
[403789598,1769544810322,-200.0,0.00042994,120]
[403789599,1769544810349,-569634.0330988,0.00042998,30]
[403789600,1769544810376,-500.03670405,0.00043,120]
[403789601,1769544810404,-5000.0,0.00043,60]
[403789602,1769544810433,-471.0,0.00043,120]
[403789603,1769544810459,-1000.0,0.00043,120]
[403789604,1769544810487,-500.0,0.00043,120]
[403789605,1769544810514,-264.17,0.00043014,120]
[403789606,1769544810542,-500.0,0.00043073,120]
[403789607,1769544810569,-2192.86,0.000431,30]
[403789608,1769544810596,-1361.2,0.00043108,120]
[403789609,1769544810622,-151.0,0.00043156,120]
[403789610,1769544810650,-151.0,0.00043156,120]
[403789611,1769544810679,-151.0,0.00043156,120]
[403789612,1769544810709,-151.0,0.00043156,120]
[403789613,1769544810737,-217.092059,0.00043156,120]
[403789614,1769544810766,-151.0,0.00043156,120]
[403789615,1769544810794,-217.092059,0.00043156,120]
[403789616,1769544810823,-151.0,0.00043156,120]
[403789617,1769544810852,-217.092059,0.00043156,120]
[403789618,1769544810881,-217.092059,0.00043156,120]
[403789619,1769544810915,-405.50346,0.00043156,120]
[403789620,1769544810946,-405.50346,0.00043156,120]
[403789621,1769544810975,-405.50346,0.00043156,120]
[403789622,1769544811010,-151.0,0.00043156,120]
[403789623,1769544811040,-405.50346,0.00043156,120]
[403789624,1769544811069,-533.945927,0.00043156,120]
[403789625,1769544811099,-533.945927,0.00043156,120]
[403789626,1769544811128,-533.945927,0.00043156,120]
[403789627,1769544811156,-533.945927,0.00043156,120]
[403789628,1769544811187,-188.145171,0.00043156,120]
[403789629,1769544811217,-188.145171,0.00043156,120]
[403789630,1769544811247,-188.145171,0.00043156,120]
[403789631,1769544811276,-188.145171,0.00043156,120]
[403789632,1769544811305,-190.529351,0.00043156,120]
[403789633,1769544811336,-190.529351,0.00043156,120]
[403789634,1769544811366,-190.529351,0.00043156,120]
[403789635,1769544811395,-190.529351,0.00043156,120]
[403789636,1769544811426,-151.0,0.00043156,120]
[403789637,1769544811458,-151.0,0.00043156,120]
[403789638,1769544811794,-266.518403,0.00043156,90]
[403789639,1769544811827,-266.518403,0.00043156,90]
[403789640,1769544811859,-151.0,0.00043156,120]
[403789641,1769544811890,-266.518403,0.00043156,90]
[403789642,1769544811922,-266.518403,0.00043156,90]
[403789643,1769544811953,-151.0,0.00043156,120]
[403789644,1769544811983,-151.0,0.00043156,120]
[403789645,1769544812015,-151.0,0.00043156,120]
[403789646,1769544812050,-151.0,0.00043156,120]
[403789647,1769544812081,-468.926574,0.00043156,120]
[403789648,1769544812112,-151.0,0.00043156,120]
[403789649,1769544812144,-468.926574,0.00043156,120]
[403789650,1769544812175,-1697.517,0.00043156,120]
[403789651,1769544812206,-468.926574,0.00043156,120]
[403789652,1769544812235,-1697.517,0.00043156,120]
[403789653,1769544812264,-468.926574,0.00043156,120]
[403789654,1769544812298,-1697.517,0.00043156,120]
[403789655,1769544812328,-1697.517,0.00043156,120]
[403789656,1769544812357,-151.0,0.00043156,120]
[403789657,1769544812386,-151.0,0.00043156,120]
[403789658,1769544812415,-151.0,0.00043156,120]
[403789659,1769544812443,-151.0,0.00043156,120]
[403789660,1769544812471,-482.37017,0.00043156,120]
[403789661,1769544812499,-482.37017,0.00043156,120]
[403789662,1769544812532,-482.37017,0.00043156,120]
[403789663,1769544812560,-482.37017,0.00043156,120]
[403789664,1769544812590,-376.984951,0.00043156,120]
[403789665,1769544812619,-376.984951,0.00043156,120]
[403789666,1769544812650,-376.984951,0.00043156,120]
[403789667,1769544812679,-376.984951,0.00043156,120]
[403789668,1769544812708,-415.809357,0.00043156,120]
[403789669,1769544812737,-415.809357,0.00043156,120]
[403789670,1769544812767,-415.809357,0.00043156,120]
[403789671,1769544812799,-415.809357,0.00043156,120]
[403789672,1769544812829,-151.0,0.00043156,120]
[403789673,1769544812858,-151.0,0.00043156,120]
[403789674,1769544812888,-277.337819,0.00043156,120]
[403789675,1769544812917,-277.337819,0.00043156,120]
[403789676,1769544812946,-277.337819,0.00043156,120]
[403789677,1769544812977,-151.0,0.00043156,120]
[403789678,1769544813006,-277.337819,0.00043156,120]
[403789679,1769544813038,-151.0,0.00043156,120]
[403789680,1769544813073,-151.0,0.00043156,120]
[403789681,1769544813105,-216.321753,0.00043156,120]
[403789682,1769544813136,-216.321753,0.00043156,120]
[403789683,1769544813166,-291.357649,0.00043156,120]
[403789684,1769544813196,-216.321753,0.00043156,120]
[403789685,1769544813226,-291.357649,0.00043156,120]
[403789686,1769544813257,-216.321753,0.00043156,120]
[403789687,1769544813287,-291.357649,0.00043156,120]
[403789688,1769544813326,-151.0,0.00043156,120]
[403789689,1769544813361,-291.357649,0.00043156,120]
[403789690,1769544813394,-151.0,0.00043156,120]
[403789691,1769544813425,-151.0,0.00043156,120]
[403789692,1769544813457,-371.507359,0.00043156,120]
[403789693,1769544813488,-151.0,0.00043156,120]
[403789694,1769544813520,-371.507359,0.00043156,120]
[403789695,1769544813552,-213.643346,0.00043156,120]
[403789696,1769544813584,-188.019854,0.00043156,120]
[403789697,1769544813615,-371.507359,0.00043156,120]
[403789698,1769544813645,-213.643346,0.00043156,120]
[403789699,1769544813676,-151.0,0.00043156,120]
[403789700,1769544813708,-371.507359,0.00043156,120]
[403789701,1769544813740,-213.643346,0.00043156,120]
[403789702,1769544813772,-152.647483,0.00043156,120]
[403789703,1769544813810,-151.0,0.00043156,120]
[403789704,1769544813843,-152.647483,0.00043156,120]
[403789705,1769544813876,-213.643346,0.00043156,120]
[403789706,1769544813909,-151.0,0.00043156,120]
[403789707,1769544813945,-152.647483,0.00043156,120]
[403789708,1769544813979,-152.647483,0.00043156,120]
[403789709,1769544814013,-412.090994,0.00043156,120]
[403789710,1769544814045,-412.090994,0.00043156,120]
[403789711,1769544814077,-188.019854,0.00043156,120]
[403789712,1769544814108,-151.0,0.00043156,30]
[403789713,1769544814140,-412.090994,0.00043156,120]
[403789714,1769544814171,-188.019854,0.00043156,120]
[403789715,1769544814200,-412.090994,0.00043156,120]
[403789716,1769544814231,-188.019854,0.00043156,120]
[403789717,1769544814261,-151.0,0.00043156,120]
[403789718,1769544814297,-151.0,0.00043156,120]
[403789719,1769544814328,-151.0,0.00043156,120]
[403789720,1769544814361,-176.664947,0.00043156,120]
[403789721,1769544814395,-176.664947,0.00043156,120]
[403789722,1769544814426,-151.0,0.00043156,120]
[403789723,1769544814458,-176.664947,0.00043156,120]
[403789724,1769544814490,-151.0,0.00043156,120]
[403789725,1769544814523,-176.664947,0.00043156,120]
[403789726,1769544814556,-151.0,0.00043156,120]
[403789727,1769544814588,-189.743151,0.00043156,120]
[403789728,1769544814621,-1173322.587,0.00043157,30]
[403789729,1769544814652,-500.0,0.00043158,120]
[403789730,1769544814687,-533.0,0.00043175,120]
[403789731,1769544814718,-500.0,0.00043175,120]
[403789732,1769544815120,-500.0,0.00043175,120]
[403789733,1769544815154,-500.0,0.00043175,120]
[403789734,1769544815185,-500.0,0.00043175,120]